fUSD/lending_fUSD_20250916
["ID","MTS","AMOUNT","RATE_DAILY","PERIOD"]
[385859222,1758065432787,-151.0,0.00019782,2]
[385859224,1758065432796,-151.0,0.00019782,2]
[385859227,1758065432805,-151.0,0.00019782,2]
[385859228,1758065432814,-200.0,0.00019782,2]
[385859230,1758065432823,-151.0,0.00019782,2]
[385859233,1758065432832,-151.0,0.00019782,2]
[385859235,1758065432841,-151.0,0.00019782,2]
[385859237,1758065432851,-151.0,0.00019782,2]
[385859239,1758065432860,-151.0,0.00019782,2]
[385859240,1758065432869,-151.0,0.00019782,2]
[385859242,1758065432878,-151.0,0.00019782,2]
[385859244,1758065432887,-500.0,0.00019782,2]
[385859246,1758065432896,-500.0,0.00019782,2]
[385859248,1758065432905,-151.0,0.00019782,2]
[385859250,1758065432914,-151.0,0.00019782,2]
[385859252,1758065432922,-500.0,0.00019782,2]
[385859254,1758065432931,-151.0,0.00019782,2]
[385859256,1758065432942,-500.0,0.00019782,2]
[385859258,1758065432951,-151.0,0.00019782,2]
[385859260,1758065432960,-500.0,0.00019782,2]
[385859262,1758065432969,-151.0,0.00019782,2]
[385859264,1758065432978,-500.0,0.00019782,2]
[385859266,1758065432987,-151.0,0.00019782,2]
[385859268,1758065432996,-500.0,0.00019782,2]
[385859270,1758065433006,-151.0,0.00019782,2]
[385859272,1758065433015,-151.0,0.00019782,2]
[385859274,1758065433025,-500.0,0.00019782,2]
[385859276,1758065433034,-151.0,0.00019782,2]
[385859278,1758065433043,-500.0,0.00019782,2]
[385859280,1758065433054,-500.0,0.00019782,2]
[385859281,1758065433063,-500.0,0.00019782,2]
[385859282,1758065433072,-500.0,0.00019782,2]
[385859283,1758065433081,-500.0,0.00019782,2]
[385859284,1758065433090,-500.0,0.00019782,2]
[385859285,1758065433101,-287.64488032,0.00019795,2]
[385859356,1758065433829,-212.35511968,0.00019795,2]
[385859358,1758065433845,-151.60303735,0.00019795,2]
[385859360,1758065433854,-150.0,0.00019795,2]
[385859362,1758065433864,-150.0,0.00019795,2]
[385859365,1758065433873,-500.0,0.00019795,2]
[385859366,1758065433883,-500.0,0.00019795,2]
[385859369,1758065433893,-150.0,0.00019795,2]
[385859371,1758065433902,-12990.68577073,0.00019799,2]
[385859373,1758065433911,-218.39609824,0.000198,2]
[385859374,1758065433920,-3800.0,0.000198,7]
[385859377,1758065433931,-500.0,0.000198,7]
[385859379,1758065433943,-150.0,0.000198,7]
[385859380,1758065433952,-500.0,0.000198,7]
[385859382,1758065433961,-500.0,0.000198,7]
[385859385,1758065433971,-500.0,0.000198,7]
[385859387,1758065433980,-54.51269386,0.000198,7]
[385859389,1758065433992,-445.48730614,0.000198,7]
[385859391,1758065434002,-500.0,0.000198,7]
[385859393,1758065434011,-150.0,0.000198,7]
[385859395,1758065434020,-150.0,0.000198,7]
[385859397,1758065434030,-500.0,0.000198,7]
[385859399,1758065434039,-207.13427201,0.000198,7]
[385859401,1758065434049,-500.0,0.000198,7]
[385859403,1758065434058,-500.0,0.000198,7]
[385859405,1758065434067,-303.69090612,0.000198,7]
[385859408,1758065434088,-500.0,0.00019795,2]
[385859410,1758065434097,-196.30909388,0.000198,7]
[385859412,1758065434107,-500.0,0.000198,7]
[385859414,1758065434117,-500.0,0.000198,7]
[385859416,1758065434126,-500.0,0.000198,7]
[385859418,1758065434135,-500.0,0.000198,7]
[385859420,1758065434144,-500.0,0.000198,7]
[385859422,1758065434153,-500.0,0.000198,7]
[385859424,1758065434163,-150.0,0.000198,7]
[385859426,1758065434172,-802.0,0.000198,7]
[385859428,1758065434182,-1497.0,0.00019806,2]
[385859430,1758065434192,-508.0,0.00019806,2]
[385859432,1758065434202,-497.0,0.00019806,2]
[385859434,1758065434212,-916.0,0.00019806,2]
[385859436,1758065434221,-500.0,0.00019806,2]
[385859438,1758065434231,-3415.0,0.00019806,2]
[385859440,1758065434240,-500.0,0.00019806,2]
[385859442,1758065434249,-500.0,0.00019806,2]
[385859444,1758065434259,-500.0,0.00019806,2]
[385859446,1758065434268,-915.0,0.00019806,2]
[385859448,1758065434277,-500.0,0.00019806,2]
[385859450,1758065434287,-500.0,0.00019806,2]
[385859452,1758065434296,-500.0,0.00019806,2]
[385859455,1758065434306,-500.0,0.00019806,2]
[385859457,1758065434319,-500.0,0.00019806,2]
[385859459,1758065434329,-12990.68577069,0.0001981,2]
[385859461,1758065434338,-150.0,0.00019818,4]
[385859463,1758065434347,-1000.0,0.0001982,2]
[385859465,1758065434357,-12990.68577069,0.00019821,2]
[385859467,1758065434366,-150.0,0.00019822,2]
[385859469,1758065434376,-12990.68577069,0.00019833,2]
[385859471,1758065434385,-10627.023291,0.00019834,2]
[385859473,1758065434394,-1000.0,0.00019839,2]
[385859475,1758065434404,-12990.68577069,0.00019844,2]
[385859477,1758065434413,-12990.68577069,0.00019855,2]
[385859479,1758065434421,-2259.98,0.00019866,2]
[385859481,1758065434431,-12990.68577069,0.00019866,2]
[385859482,1758065434440,-500.0,0.00019873,2]
[385859483,1758065434450,-500.0,0.00019873,2]
[385859485,1758065434460,-500.0,0.00019873,2]
[385859487,1758065434470,-221.05243466,0.00019873,2]
[385859489,1758065434480,-500.0,0.00019873,2]
[385859491,1758065434490,-286.55734603,0.00019873,2]
[385859493,1758065434500,-502.49114945,0.00019873,2]
[385859495,1758065434509,-500.80097255,0.00019873,2]
[385859497,1758065434518,-500.0,0.00019873,2]
[385859499,1758065434528,-500.0,0.00019873,2]
[385859501,1758065434537,-505.24701172,0.00019873,2]
[385859503,1758065434546,-500.0,0.00019873,2]
[385859505,1758065434555,-500.0,0.00019873,2]
[385859507,1758065434564,-166.63317345,0.00019873,2]
[385859509,1758065434573,-648.13875732,0.00019873,2]
[385859511,1758065434582,-500.0,0.00019873,2]
[385859513,1758065434591,-500.0,0.00019873,2]
[385859515,1758065434601,-500.0,0.00019873,2]
[385859517,1758065434610,-500.0,0.00019873,2]
[385859519,1758065434622,-500.0,0.00019873,2]
[385859521,1758065434635,-34646.14100672,0.00019873,2]
[385859523,1758065434644,-34646.14100671,0.00019876,2]
[385859525,1758065434653,-150.0,0.00019877,2]
[385859527,1758065434664,-12990.68577069,0.00019878,2]
[385859529,1758065434673,-34646.14100671,0.00019879,2]
[385859531,1758065434682,-34646.14100671,0.00019882,2]
[385859533,1758065434692,-150.0,0.00019883,2]
[385859535,1758065434701,-2259.98,0.00019884,2]
[385859537,1758065434712,-34646.14100671,0.00019885,2]
[385859539,1758065434722,-34646.14100671,0.00019888,2]
[385859541,1758065434731,-12990.68577069,0.00019889,2]
[385859543,1758065434740,-34646.14100671,0.00019891,2]
[385859545,1758065434749,-34646.14100671,0.00019894,2]
[385859547,1758065434758,-34646.14100671,0.00019897,2]
[385859549,1758065434768,-221.0273167,0.00019898,2]
[385859551,1758065434777,-500.0,0.00019898,2]
[385859553,1758065434786,-500.0,0.00019898,2]
[385859555,1758065434796,-150.0,0.00019898,2]
[385859557,1758065434805,-150.0,0.00019898,2]
[385859559,1758065434815,-500.0,0.00019898,2]
[385859561,1758065434825,-500.0,0.00019898,2]
[385859563,1758065434834,-500.0,0.00019898,2]
[385859565,1758065434844,-500.0,0.00019898,2]
[385859567,1758065434853,-500.0,0.00019898,2]
[385859569,1758065434863,-500.0,0.00019898,2]
[385859571,1758065434873,-500.0,0.00019898,2]
[385859573,1758065434882,-150.0,0.00019898,2]
[385859575,1758065434891,-500.0,0.00019898,2]
[385859577,1758065434900,-150.0,0.00019898,2]
[385859579,1758065434910,-150.0,0.00019899,2]
[385859581,1758065434919,-161.90209112,0.00019899,2]
[385859583,1758065434928,-506.35500661,0.000199,2]
[385859585,1758065434937,-3230.3871,0.000199,2]
[385859587,1758065434946,-12990.68577069,0.000199,2]
[385859589,1758065434955,-213.1401216,0.000199,7]
[385859591,1758065434965,-176.96836637,0.000199,2]
[385859593,1758065434974,-2431.89756368,0.000199,2]
[385859595,1758065434983,-700.0,0.000199,7]
[385859597,1758065434993,-741.57331689,0.000199,2]
[385859599,1758065435003,-34646.14100671,0.000199,2]
[385859601,1758065435012,-1024.44975094,0.000199,2]
[385859603,1758065435021,-1341.90126392,0.000199,2]
[385859605,1758065435031,-5569.3616838,0.000199,2]
[385859607,1758065435040,-357.45048255,0.000199,2]
[385859609,1758065435050,-6345.81972931,0.000199,2]
[385859611,1758065435059,-517.90200001,0.000199,2]
[385859613,1758065435068,-191.39919682,0.000199,2]
[385859615,1758065435077,-154.39967199,0.00019913,2]
[385859617,1758065435087,-300.0,0.00019913,2]
[385859619,1758065435096,-150.0,0.00019915,2]
[385859620,1758065435105,-150.0,0.00019921,2]
[385859623,1758065435114,-150.0,0.00019937,2]
[385859624,1758065435123,-150.0,0.00019939,2]
[385859627,1758065435132,-150.0,0.00019942,2]
[385859629,1758065435142,-150.0,0.00019953,2]
[385859630,1758065435151,-1143.46832096,0.00019959,2]
[385859632,1758065435160,-514.0,0.0001997,2]
[385859634,1758065435169,-182.55041339,0.00019973,2]
[385859636,1758065435178,-501.43611844,0.00019973,2]
[385859638,1758065435187,-342.60117487,0.00019973,2]
[385859641,1758065435197,-500.0,0.00019973,2]
[385859643,1758065435207,-500.0,0.00019973,2]
[385859645,1758065435216,-500.0,0.00019973,2]
[385859646,1758065435225,-30213.0,0.00019973,2]
[385859649,1758065435234,-500.0,0.00019973,2]
[385859651,1758065435243,-500.0,0.00019973,2]
[385859652,1758065435253,-500.0,0.00019973,2]
[385859654,1758065435262,-500.0,0.00019973,2]
[385859656,1758065435271,-501.97715336,0.00019973,2]
[385859658,1758065435280,-500.0,0.00019973,2]
[385859660,1758065435290,-500.0,0.00019973,2]
[385859662,1758065435299,-1090.0,0.00019973,2]
[385859665,1758065435308,-34110.0,0.00019973,2]
[385859667,1758065435317,-500.0,0.00019973,2]
[385859668,1758065435326,-500.0,0.00019973,2]
[385859670,1758065435335,-500.0,0.00019973,2]
[385859672,1758065435345,-500.0,0.00019973,2]
[385859674,1758065435353,-500.0,0.00019973,2]
[385859676,1758065435362,-500.0,0.00019973,2]
[385859678,1758065435372,-159.90701866,0.00019973,2]
[385859680,1758065435381,-501.45069751,0.00019973,2]
[385859682,1758065435390,-168.21724933,0.00019973,2]
[385859684,1758065435399,-501.039611,0.00019973,2]
[385859686,1758065435408,-500.0,0.00019973,2]
[385859688,1758065435417,-314.14195033,0.00019973,2]
[385859690,1758065435426,-500.0,0.00019973,2]
[385859692,1758065435435,-500.0,0.00019973,2]
[385859694,1758065435444,-500.0,0.00019973,2]
[385859696,1758065435453,-500.0,0.00019973,2]
[385859698,1758065435462,-500.0,0.00019973,2]
[385859700,1758065435471,-500.0,0.00019973,2]
[385859702,1758065435480,-162.82263633,0.00019973,2]
[385859704,1758065435489,-500.0,0.00019973,2]
[385859706,1758065435498,-500.0,0.00019973,2]
[385859708,1758065435507,-159.83107168,0.00019973,2]
[385859710,1758065435516,-338.72965914,0.00019973,2]
[385859712,1758065435525,-500.0,0.00019973,2]
[385859714,1758065435534,-500.0,0.00019973,2]
[385859716,1758065435544,-521.38650434,0.00019973,2]
[385859718,1758065435553,-500.0,0.00019973,2]
[385859720,1758065435562,-500.0,0.00019973,2]
[385859722,1758065435571,-500.0,0.00019973,2]
[385859723,1758065435580,-500.0,0.00019973,2]
[385859726,1758065435589,-500.0,0.00019973,2]
[385859728,1758065435599,-277.53927939,0.00019973,2]
[385859730,1758065435608,-526.59781844,0.00019973,2]
[385859731,1758065435618,-500.0,0.00019973,2]
[385859734,1758065435627,-500.0,0.00019973,2]
[385859735,1758065435636,-500.0,0.00019973,2]
[385859738,1758065435646,-738.22984935,0.00019988,2]
[385859740,1758065435655,-152.08,0.00019988,2]
[385859741,1758065435665,-2687.75455983,0.0001999,2]
[385859744,1758065435674,-2687.75455983,0.0001999,2]
[385859745,1758065435684,-152.08,0.0001999,2]
[385859747,1758065435694,-152.08,0.0001999,2]
[385859749,1758065435703,-152.08,0.0001999,2]
[385859752,1758065435713,-152.08,0.0001999,2]
[385859754,1758065435723,-152.08,0.0001999,2]
[385859755,1758065435732,-152.08,0.0001999,2]
[385859757,1758065435742,-152.08,0.0001999,2]
[385859758,1758065435751,-152.08,0.0001999,2]
[385859759,1758065435761,-152.08,0.0001999,2]
[385859760,1758065435771,-152.08,0.0001999,2]
[385859761,1758065435780,-152.08,0.0001999,2]
[385859762,1758065435790,-152.08,0.0001999,2]
[385859763,1758065435799,-152.08,0.0001999,2]
[385859764,1758065435808,-1041.06162395,0.00019992,5]
[385859765,1758065435818,-1000.0,0.00019992,2]
[385859766,1758065435827,-117303.4530053,0.00019993,2]
[385859767,1758065435837,-877.97549982,0.00019994,2]
[385859769,1758065435847,-151.0,0.00019995,2]
[385859771,1758065435857,-151.0,0.00019997,2]
[385859773,1758065435866,-151.0,0.00019997,2]
[385859775,1758065435875,-151.0,0.00019997,2]
[385859777,1758065435885,-278157.6200063,0.00019998,2]
[385859794,1758065436033,-150.2352452,0.00019998,2]
[385859796,1758065436044,-13397.9403741,0.00019998,2]
[385859798,1758065436053,-94747.7623633,0.00019998,2]
[385859800,1758065436063,-22427.8980406,0.00019998,2]
[385859802,1758065436072,-217307.6971902,0.00019998,2]
[385859804,1758065436081,-1000.0,0.00019999,2]
[385859806,1758065436091,-150.0,0.00019999,2]
[385859808,1758065436100,-265.85428481,0.0002,4]
[385859810,1758065436111,-154.24238512,0.0002,4]
[385859812,1758065436120,-153.79133665,0.0002,4]
[385859814,1758065436131,-156.80952683,0.0002,4]
[385859816,1758065436140,-150.0,0.0002,4]
[385859818,1758065436149,-506762.08586833,0.0002,2]
[385859821,1758065436162,-1887.9910163,0.0002,2]
[385859823,1758065436177,-854.71433122,0.0002,2]
[385859828,1758065436208,-643.62359158,0.0002,2]
[385859831,1758065436230,-6447.83317497,0.0002,2]
[385860099,1758065438797,-192.93115401,0.0001982,2]
[385860101,1758065438806,-466.22217585,0.0001982,2]
[385860103,1758065438817,-33.77782415,0.0001982,2]
[385860105,1758065438827,-326.06235284,0.0001982,2]
[385860107,1758065438836,-633.7159507,0.0001982,2]
[385860109,1758065438846,-4328327.49041329,0.0002,2]
[385860111,1758065438855,-3950.0,0.0002,2]
[385860113,1758065438864,-1274.11795683,0.0002,2]
[385860115,1758065438873,-7258.52008643,0.0002,2]
[385860117,1758065438882,-1028.46747377,0.0002,2]
[385860119,1758065438891,-2817.64651655,0.0002,2]
[385860121,1758065438901,-85804.61128156,0.0002,2]
[385860123,1758065438910,-1624.91128719,0.0002,2]
[385860125,1758065438920,-156.80218843,0.0002,2]
[385860127,1758065438929,-200.0,0.0002,2]
[385860129,1758065438939,-301.86290389,0.0002,2]
[385860131,1758065438949,-51186.64305614,0.0002,2]
[385860133,1758065438959,-151.0,0.0002,2]
[385860135,1758065438968,-242988.99182803,0.0002,2]
[385860137,1758065438977,-180.11591387,0.0002,4]
[385860139,1758065438987,-175.11112392,0.0002,4]
[385860141,1758065438996,-150.0,0.0002,4]
[385860143,1758065439006,-181.06815544,0.0002,4]
[385860145,1758065439015,-150.0,0.0002,4]
[385860147,1758065439025,-284.84559526,0.0002,4]
[385860149,1758065439034,-152.63198766,0.0002,4]
[385860151,1758065439043,-152.49015848,0.0002,4]
[385860153,1758065439052,-150.0,0.0002,4]
[385860155,1758065439062,-472.48348865,0.0002,2]
[385860157,1758065439071,-690.23452,0.0002,2]
[385860159,1758065439082,-690.23452,0.0002,2]
[385860161,1758065439091,-690.23452,0.0002,2]
[385860163,1758065439100,-690.23452,0.0002,2]
[385860165,1758065439110,-690.23452,0.0002,2]
[385860167,1758065439119,-690.23452,0.0002,2]
[385860169,1758065439128,-1000.0,0.0002,2]
[385860171,1758065439138,-1076.26906951,0.0002,2]
[385860173,1758065439147,-4000.0,0.0002,4]
[385860175,1758065439156,-5046.15406987,0.0002001,2]
[385860177,1758065439165,-4742.07,0.0002001,2]
[385860179,1758065439174,-500.0,0.00020069,2]
[385860181,1758065439183,-150.0,0.00020069,2]
[385860183,1758065439192,-150.0,0.00020069,2]
[385860184,1758065439201,-500.0,0.00020069,2]
[385860187,1758065439211,-500.0,0.00020069,2]
[385860189,1758065439220,-500.0,0.00020074,7]
[385860191,1758065439230,-150.0,0.00020074,7]
[385860193,1758065439240,-500.0,0.00020074,7]
[385860195,1758065439249,-500.0,0.00020074,7]
[385860197,1758065439258,-500.0,0.00020074,7]
[385860199,1758065439268,-500.0,0.00020074,7]
[385860201,1758065439278,-500.0,0.00020074,7]
[385860203,1758065439288,-150.0,0.00020074,7]
[385860205,1758065439297,-150.35316254,0.00020074,7]
[385860207,1758065439306,-500.0,0.00020074,7]
[385860209,1758065439317,-500.0,0.00020074,7]
[385860211,1758065439326,-500.0,0.00020074,7]
[385860213,1758065439336,-500.0,0.00020074,7]
[385860215,1758065439346,-500.0,0.00020074,7]
[385860217,1758065439355,-603.50038541,0.00020074,7]
[385860219,1758065439364,-500.0,0.00020074,7]
[385860221,1758065439374,-500.0,0.00020074,7]
[385860223,1758065439383,-500.0,0.00020074,7]
[385860225,1758065439392,-500.0,0.00020074,7]
[385860227,1758065439402,-150.0,0.00020074,7]
[385860229,1758065439412,-500.0,0.00020075,2]
[385860231,1758065439421,-500.0,0.00020075,2]
[385860233,1758065439430,-497.0,0.0002008,2]
[385860235,1758065439440,-916.0,0.0002008,2]
[385860237,1758065439449,-500.0,0.0002008,2]
[385860239,1758065439458,-3415.0,0.0002008,2]
[385860240,1758065439467,-500.0,0.0002008,2]
[385860242,1758065439476,-557.6739272,0.0002008,2]
[385860244,1758065439486,-500.0,0.0002008,2]
[385860246,1758065439495,-915.0,0.0002008,2]
[385860249,1758065439505,-500.0,0.0002008,2]
[385860251,1758065439515,-500.0,0.0002008,2]
[385860253,1758065439526,-500.0,0.0002008,2]
[385860255,1758065439535,-162.63,0.00020111,2]
[385860257,1758065439545,-172.45,0.0002012,2]
[385860258,1758065439554,-300.0,0.00020157,2]
[385860261,1758065439564,-165.51,0.00020163,2]
[385860263,1758065439573,-500.0,0.00020172,2]
[385860264,1758065439582,-500.0,0.00020172,2]
[385860266,1758065439592,-151.9875442,0.00020172,2]
[385860268,1758065439603,-150.97741489,0.00020172,2]
[385860270,1758065439612,-500.0,0.00020172,2]
[385860272,1758065439623,-500.0,0.00020172,2]
[385860275,1758065439633,-500.0,0.00020172,2]
[385860277,1758065439644,-507.06246912,0.00020172,2]
[385860279,1758065439654,-500.0,0.00020172,2]
[385860281,1758065439666,-500.0,0.00020172,2]
[385860283,1758065439675,-500.0,0.00020172,2]
[385860285,1758065439684,-150.0,0.00020172,2]
[385860287,1758065439694,-200.0,0.000202,2]
[385860289,1758065439704,-3786.34657126,0.00020202,2]
[385860291,1758065439713,-185.3565246,0.00020248,2]
[385860294,1758065439723,-200.0,0.0002033,2]
[385860296,1758065439732,-200.0,0.0002033,2]
[385860298,1758065439741,-500.0,0.00020343,2]
[385860300,1758065439750,-150.0,0.00020343,2]
[385860302,1758065439760,-500.0,0.00020343,2]
[385860304,1758065439769,-500.0,0.00020343,2]
[385860306,1758065439778,-500.0,0.00020348,7]
[385860308,1758065439787,-150.0,0.00020348,7]
[385860310,1758065439797,-500.0,0.00020348,7]
[385860312,1758065439807,-500.0,0.00020348,7]
[385860314,1758065439816,-459.34035136,0.00020348,7]
[385860316,1758065439825,-500.0,0.00020348,7]
[385860318,1758065439835,-500.0,0.00020348,7]
[385860320,1758065439845,-150.0,0.00020348,7]
[385860322,1758065439855,-500.0,0.00020348,7]
[385860324,1758065439864,-500.0,0.00020348,7]
[385860326,1758065439874,-415.55837746,0.00020348,7]
[385860328,1758065439883,-318.35948414,0.00020348,7]
[385860330,1758065439892,-500.0,0.00020348,7]
[385860332,1758065439901,-500.0,0.00020348,7]
[385860334,1758065439911,-500.0,0.00020348,7]
[385860336,1758065439920,-500.0,0.00020348,7]
[385860338,1758065439929,-500.0,0.00020348,7]
[385860340,1758065439938,-150.0,0.00020348,7]
[385860342,1758065439948,-251.48000638,0.00020349,2]
[385860358,1758065440095,-500.0,0.00020349,2]
[385860360,1758065440105,-497.0,0.00020354,2]
[385860362,1758065440114,-916.0,0.00020354,2]
[385860364,1758065440123,-500.0,0.00020354,2]
[385860366,1758065440132,-3415.0,0.00020354,2]
[385860368,1758065440142,-500.0,0.00020354,2]
[385860371,1758065440151,-500.0,0.00020354,2]
[385860373,1758065440161,-915.0,0.00020354,2]
[385860375,1758065440170,-500.0,0.00020354,2]
[385860377,1758065440180,-500.0,0.00020354,2]
[385860379,1758065440189,-329.43129325,0.00020354,2]
[385860381,1758065440198,-200.0,0.00020402,2]
[385860383,1758065440208,-1000.0,0.00020421,2]
[385860385,1758065440217,-1000.0,0.00020421,2]
[385860387,1758065440226,-501.23419872,0.00020421,2]
[385860389,1758065440235,-1000.0,0.00020421,2]
[385860391,1758065440245,-501.8118824,0.00020421,2]
[385860393,1758065440255,-1000.0,0.00020421,2]
[385860395,1758065440265,-505.84136896,0.00020421,2]
[385860397,1758065440274,-500.0,0.00020421,2]
[385860399,1758065440283,-1000.0,0.00020421,2]
[385860401,1758065440292,-500.0,0.00020421,2]
[385860403,1758065440301,-500.0,0.00020446,2]
[385860405,1758065440310,-500.0,0.00020446,2]
[385860407,1758065440319,-451.74812166,0.00020446,2]
[385860409,1758065440329,-500.0,0.00020446,2]
[385860411,1758065440338,-500.0,0.00020446,2]
[385860413,1758065440347,-500.0,0.00020446,2]
[385860416,1758065440356,-500.0,0.00020446,2]
[385860418,1758065440365,-405.3060506,0.00020446,2]
[385860420,1758065440375,-150.0,0.00020446,2]
[385860422,1758065440384,-500.0,0.00020521,2]
[385860424,1758065440393,-500.0,0.00020521,2]
[385860426,1758065440403,-1005.85000884,0.00020521,2]
[385860427,1758065440412,-1000.0,0.00020521,2]
[385860429,1758065440422,-1000.0,0.00020521,2]
[385860431,1758065440431,-1000.0,0.00020521,2]
[385860433,1758065440441,-1000.0,0.00020521,2]
[385860435,1758065440451,-1010.44531978,0.00020521,2]
[385860436,1758065440460,-506.78205114,0.00020521,2]
[385860437,1758065440470,-502.58701886,0.00020521,2]
[385860438,1758065440479,-1000.0,0.00020521,2]
[385860439,1758065440489,-1000.0,0.00020521,2]
[385860440,1758065440499,-1000.0,0.00020521,2]
[385860441,1758065440509,-1000.0,0.00020521,2]
[385860442,1758065440519,-1000.0,0.00020521,2]
[385860443,1758065440529,-1000.0,0.00020521,2]
[385860445,1758065440539,-511.23854156,0.00020521,2]
[385860447,1758065440548,-1000.0,0.00020521,2]
[385860449,1758065440558,-501.33157288,0.00020521,2]
[385860451,1758065440567,-1000.0,0.00020521,2]
[385860453,1758065440576,-1024.26327614,0.00020521,2]
[385860455,1758065440585,-1000.0,0.00020521,2]
[385860457,1758065440595,-1000.0,0.00020521,2]
[385860459,1758065440604,-676.6943863,0.00020521,2]
[385860461,1758065440613,-1000.0,0.00020521,2]
[385860463,1758065440622,-1000.0,0.00020521,2]
[385860465,1758065440631,-1039.92644265,0.00020521,2]
[385860467,1758065440640,-532.97770719,0.00020521,2]
[385860469,1758065440650,-254.48682812,0.00020521,2]
[385860470,1758065440663,-1000.0,0.00020521,2]
[385860472,1758065440673,-500.0,0.00020548,2]
[385860475,1758065440687,-154.84690377,0.00020617,2]
[385860477,1758065440696,-150.0,0.00020617,2]
[385860479,1758065440707,-500.0,0.00020617,2]
[385860481,1758065440717,-500.0,0.00020617,2]
[385860483,1758065440726,-500.0,0.00020622,7]
[385860485,1758065440738,-150.0,0.00020622,7]
[385860487,1758065440748,-500.0,0.00020622,7]
[385860489,1758065440758,-500.0,0.00020622,7]
[385860491,1758065440767,-500.0,0.00020622,7]
[385860493,1758065440777,-500.0,0.00020622,7]
[385860495,1758065440786,-150.0,0.00020622,7]
[385860497,1758065440796,-500.0,0.00020622,7]
[385860499,1758065440806,-500.0,0.00020622,7]
[385860501,1758065440815,-174.01836615,0.00020622,7]
[385860504,1758065440826,-500.0,0.00020622,7]
[385860506,1758065440836,-500.0,0.00020622,7]
[385860508,1758065440846,-500.0,0.00020622,7]
[385860510,1758065440855,-500.0,0.00020622,7]
[385860512,1758065440865,-500.0,0.00020623,2]
[385860514,1758065440875,-497.0,0.00020628,2]
[385860516,1758065440885,-916.0,0.00020628,2]
[385860518,1758065440895,-500.0,0.00020628,2]
[385860520,1758065440905,-3415.0,0.00020628,2]
[385860522,1758065440914,-500.0,0.00020628,2]
[385860524,1758065440924,-915.0,0.00020628,2]
[385860526,1758065440934,-500.0,0.00020628,2]
[385860528,1758065440944,-500.0,0.00020628,2]
[385860530,1758065440954,-163.13,0.00020663,2]
[385860532,1758065440963,-1832.73,0.00020665,2]
[385860534,1758065440973,-1000.0,0.00020698,2]
[385860536,1758065440982,-500.0,0.0002072,2]
[385860538,1758065440991,-500.0,0.0002072,2]
[385860540,1758065441001,-500.0,0.0002072,2]
[385860542,1758065441011,-560.59634237,0.0002072,2]
[385860544,1758065441022,-500.0,0.0002072,2]
[385860546,1758065441031,-500.0,0.0002072,2]
[385860548,1758065441041,-150.0,0.0002072,2]
[385860550,1758065441051,-600.0,0.00020755,2]
[385860552,1758065441061,-297.22,0.00020755,2]
[385860554,1758065441070,-750.0,0.00020757,2]
[385860556,1758065441080,-754.82,0.00020809,2]
[385860558,1758065441090,-500.0,0.00020822,2]
[385860560,1758065441099,-28171.08426268,0.0002085,2]
[385860562,1758065441108,-200.0,0.00020878,2]
[385860564,1758065441118,-200.0,0.00020878,2]
[385860566,1758065441127,-150.0,0.00020891,2]
[385860569,1758065441137,-500.0,0.00020891,2]